bitfinex/quotes_SOLUSD_20241028
["timestamp","ask_amount","ask_price","bid_price","bid_amount"]
[1730102806107,22.50859068,176.26,176.22,23.776884]
[1730102806395,22.50859068,176.28,176.22,46.28547468]
[1730102806782,22.50859068,176.25,176.21,23.776884]
[1730102808513,14.07624086,176.25,176.21,23.776884]
[1730102809090,5.6721,176.3,176.21,23.776884]
[1730102809294,14.07624086,176.27,176.21,37.85312486]
[1730102809591,14.07624086,176.27,176.22,14.07624086]
[1730102809776,14.07624086,176.27,176.23,23.776884]
[1730102811000,19.74964086,176.27,176.23,23.776884]
[1730102811212,14.07624086,176.3,176.26,23.776884]
[1730102812182,5.6725,176.29,176.25,23.776884]
[1730102813708,14.07624086,176.28,176.24,23.776884]
[1730102814088,19.74874086,176.29,176.24,23.776884]
[1730102816506,14.07624086,176.28,176.24,23.776884]
[1730102816806,14.07624086,176.25,176.2,14.07624086]
[1730102817013,14.07624086,176.26,176.2,14.07624086]
[1730102817904,19.74974086,176.26,176.21,23.776884]
[1730102818203,14.07624086,176.24,176.21,23.776884]
[1730102818407,14.07624086,176.23,176.17,14.07624086]
[1730102818705,14.07624086,176.2,176.15,30.70584086]
[1730102818884,14.07624086,176.21,176.16,14.07624086]
[1730102819086,14.07624086,176.2,176.15,14.07624086]
[1730102819503,14.07624086,176.22,176.16,14.07624086]
[1730102819986,19.75114086,176.22,176.17,23.776884]
[1730102820507,14.07624086,176.21,176.17,23.776884]
[1730102820715,14.07624086,176.19,176.17,23.776884]
[1730102823311,14.07624086,176.21,176.16,37.85312486]
[1730102823604,14.07624086,176.22,176.16,37.85312486]
[1730102823806,14.07624086,176.21,176.16,23.776884]
[1730102824203,14.07624086,176.2,176.16,23.776884]
[1730102825387,14.07624086,176.21,176.16,23.776884]
[1730102826285,14.07624086,176.19,176.16,23.776884]
[1730102826489,14.07624086,176.18,176.16,23.776884]
[1730102826741,14.07624086,176.18,176.15,23.776884]
[1730102826890,14.07624086,176.17,176.15,23.776884]
[1730102828416,14.07624086,176.18,176.15,23.776884]
[1730102830808,14.07624086,176.16,176.11,14.07624086]
[1730102831016,14.07624086,176.14,176.09,14.07624086]
[1730102832004,14.07624086,176.12,176.07,29.55384086]
[1730102832210,89.8651,176.19,176.04,14.07624086]
[1730102832211,14.07624086,176.09,176.04,14.07624086]
[1730102832918,14.07624086,176.1,176.04,14.07624086]
[1730102833308,14.07624086,176.11,176.05,14.07624086]
[1730102833720,19.75454086,176.11,176.06,23.776884]
[1730102835123,14.07624086,176.11,176.06,23.776884]
[1730102836300,14.07624086,176.12,176.07,14.07624086]
[1730102836502,70.0,176.17,176.06,23.776884]
[1730102836503,14.07624086,176.15,176.1,37.85312486]
[1730102836806,14.07624086,176.16,176.11,23.776884]
[1730102837394,14.07624086,176.15,176.11,23.776884]
[1730102837593,14.07624086,176.16,176.11,37.85312486]
[1730102837797,15.9363,176.18,176.13,23.776884]
[1730102837798,35.68854086,176.18,176.13,23.776884]
[1730102838103,5.676,176.18,176.13,14.07624086]
[1730102838720,19.75224086,176.18,176.13,14.07624086]
[1730102841401,5.676,176.18,176.14,14.07624086]
[1730102842635,19.75124086,176.21,176.16,14.07624086]
[1730102842801,20.7389,176.22,176.17,14.07624086]
[1730102843005,5.6744,176.23,176.19,14.07624086]
[1730102844004,37.2129,176.26,176.21,14.07624086]
[1730102844005,30.47804086,176.26,176.21,14.07624086]
[1730102844328,22.0752,176.26,176.21,14.07624086]
[1730102844508,36.15144086,176.26,176.2,14.07624086]
[1730102844706,14.07624086,176.25,176.2,23.776884]
[1730102844923,14.07624086,176.25,176.2,37.85312486]
[1730102845098,36.15144086,176.26,176.2,37.85312486]
[1730102845304,14.07624086,176.25,176.2,23.776884]
[1730102845727,14.07624086,176.24,176.2,23.776884]
[1730102846020,22.0752,176.26,176.2,37.85312486]
[1730102846321,19.74994086,176.25,176.2,37.85312486]
[1730102846523,19.74994086,176.25,176.12,0.35098]
[1730102846524,19.74994086,176.25,176.19,14.07624086]
[1730102846725,14.07624086,176.22,176.17,23.776884]
[1730102847106,14.07624086,176.19,176.13,14.07624086]
[1730102847930,14.07624086,176.2,176.14,14.07624086]
[1730102848120,19.75184086,176.2,176.14,14.07624086]
[1730102848429,19.75184086,176.2,176.15,23.776884]
[1730102850105,14.07624086,176.19,176.15,23.776884]
[1730102850404,19.75214086,176.19,176.14,23.776884]
[1730102851510,19.75214086,176.19,176.14,37.85312486]
[1730102852312,14.07624086,176.18,176.14,23.776884]
[1730102852626,14.07624086,176.15,176.1,30.53524086]
[1730102852827,14.07624086,176.15,176.1,14.07624086]
[1730102853001,14.07624086,176.13,176.08,14.07624086]
[1730102853610,14.07624086,176.13,176.07,20.26864086]
[1730102853810,14.07624086,176.11,176.06,29.74534086]
[1730102854235,14.07624086,176.11,176.05,14.07624086]
[1730102854526,14.07624086,176.09,176.04,14.07624086]
[1730102855223,19.75474086,176.1,176.05,14.07624086]
[1730102856624,14.07624086,176.12,176.07,14.07624086]
[1730102856826,14.07624086,176.12,176.08,23.776884]
[1730102857023,14.07624086,176.13,176.08,23.776884]
[1730102857422,14.07624086,176.12,176.07,23.776884]
[1730102857613,14.07624086,176.11,176.07,23.776884]
[1730102858032,19.75464086,176.11,176.07,23.776884]
[1730102858335,5.6784,176.11,176.07,37.85312486]
[1730102860914,19.75464086,176.11,176.07,23.776884]
[1730102861108,14.07624086,176.09,176.04,14.07624086]
[1730102861430,14.07624086,176.09,176.05,23.776884]
[1730102861635,14.07624086,176.09,176.04,23.776884]
[1730102861833,14.07624086,176.07,176.02,29.65404086]
[1730102862132,14.07624086,176.08,176.03,14.07624086]
[1730102863338,19.75574086,176.08,176.04,23.776884]
[1730102863636,19.75574086,176.08,176.03,14.07624086]
[1730102863637,5.6773,176.14,176.08,23.776884]
[1730102863824,5.6773,176.14,176.09,14.07624086]
[1730102865937,14.07624086,176.12,176.08,23.776884]
[1730102866725,5.6782,176.11,176.08,23.776884]
[1730102867323,5.6782,176.11,176.08,37.85312486]
[1730102867636,14.07624086,176.14,176.09,14.07624086]
[1730102867834,19.75314086,176.15,176.09,14.07624086]
[1730102868227,14.07624086,176.14,176.09,14.07624086]
[1730102868613,14.07624086,176.16,176.1,14.07624086]
[1730102868816,5.6773,176.14,176.1,14.07624086]
[1730102869729,5.6773,176.14,176.09,14.07624086]
[1730102870534,14.07624086,176.12,176.08,23.776884]
[1730102870731,14.07624086,176.1,176.05,14.07624086]
[1730102870937,14.07624086,176.09,176.03,14.07624086]
[1730102871927,19.75534086,176.09,176.04,23.776884]
[1730102872132,5.6791,176.09,176.06,14.07624086]
[1730102872346,5.6779,176.12,176.07,14.07624086]
[1730102872536,5.6779,176.12,176.08,14.07624086]
[1730102873340,19.75414086,176.12,176.07,14.07624086]
[1730102873557,14.07624086,176.09,176.05,23.776884]
[1730102873725,14.07624086,176.1,176.05,37.85312486]
[1730102874541,5.6789,176.09,176.05,37.85312486]
[1730102876847,14.07624086,176.07,176.03,23.776884]
[1730102877061,14.07624086,176.07,176.02,23.776884]
[1730102878056,14.07624086,176.05,175.99,14.07624086]
[1730102878254,14.07624086,176.05,176.0,14.07624086]
[1730102878629,14.07624086,176.06,176.01,14.07624086]
[1730102879035,19.75634086,176.06,176.01,14.07624086]
[1730102879245,19.75634086,176.06,176.02,23.776884]
[1730102879931,14.07624086,176.05,176.0,14.07624086]
[1730102880139,14.07624086,176.03,175.97,14.07624086]
[1730102880366,14.07624086,176.01,175.96,14.07624086]
[1730102880524,14.07624086,176.0,175.95,21.19324876]
[1730102880727,14.07624086,176.02,175.96,14.07624086]
[1730102880950,14.07624086,176.02,175.97,14.07624086]
[1730102881340,14.07624086,176.04,175.99,14.07624086]
[1730102881844,14.07624086,176.03,175.99,23.776884]
[1730102882148,14.07624086,176.03,175.98,23.776884]
[1730102882553,19.75734086,176.03,175.98,23.776884]
[1730102883130,14.07624086,176.02,175.96,14.07624086]
[1730102883457,14.07624086,176.01,175.96,14.07624086]
[1730102884754,5.6818,176.0,175.97,23.776884]
[1730102886147,14.07624086,176.04,175.99,14.07624086]
[1730102886352,19.75644086,176.05,176.0,14.07624086]
[1730102886538,5.6802,176.05,176.0,14.07624086]
[1730102887532,5.6802,176.05,176.01,14.07624086]
[1730102887733,14.07624086,176.04,175.99,14.07624086]
[1730102887946,14.07624086,176.03,175.98,14.07624086]
[1730102888151,14.07624086,176.03,175.98,23.776884]
[1730102888454,14.07624086,176.04,175.99,14.07624086]
[1730102888658,5.6785,176.1,176.02,14.07624086]
[1730102888959,14.07624086,176.09,176.04,14.07624086]
[1730102889342,5.6792,176.08,176.04,14.07624086]
[1730102890052,5.6792,176.08,176.03,14.07624086]
[1730102890633,5.6792,176.08,176.04,14.07624086]
[1730102890838,5.6792,176.08,176.03,14.07624086]
[1730102891548,19.75544086,176.08,176.03,14.07624086]
[1730102891957,19.75544086,176.08,176.02,14.07624086]
[1730102893868,19.75544086,176.08,176.03,14.07624086]
[1730102894045,5.6792,176.08,176.06,14.07624086]
[1730102894240,14.07624086,176.14,176.07,14.07624086]
[1730102894444,5.6776,176.13,176.09,14.07624086]
[1730102894756,5.6776,176.13,176.08,14.07624086]
[1730102895256,14.07624086,176.14,176.09,14.07624086]
[1730102895457,19.75354086,176.14,176.09,14.07624086]
[1730102896853,19.75354086,176.14,176.08,14.07624086]
[1730102897562,14.07624086,176.13,176.08,14.07624086]
[1730102897867,14.07624086,176.12,176.07,14.07624086]
[1730102898163,14.07624086,176.11,176.06,14.07624086]
[1730102898951,14.07624086,176.12,176.07,14.07624086]
[1730102899466,14.07624086,176.13,176.08,14.07624086]
[1730102900352,5.6779,176.12,176.08,14.07624086]
[1730102901042,19.75364086,176.14,176.09,14.07624086]
[1730102901260,5.676,176.18,176.13,14.07624086]
[1730102901467,19.75224086,176.18,176.13,14.07624086]
[1730102901766,5.676,176.18,176.14,14.07624086]
[1730102903384,19.75094086,176.22,176.17,14.07624086]
[1730102903589,14.07624086,176.21,176.16,14.07624086]
[1730102903865,14.07624086,176.21,176.15,14.07624086]
[1730102904254,14.07624086,176.21,176.16,14.07624086]
[1730102904446,5.6753,176.2,176.16,14.07624086]
[1730102904844,19.75154086,176.2,176.14,14.07624086]
[1730102905144,5.6747,176.22,176.17,14.07624086]
[1730102906561,5.6747,176.22,176.18,14.07624086]
[1730102907148,19.74964086,176.26,176.21,14.07624086]
[1730102907370,5.6734,176.26,176.21,14.07624086]
[1730102907669,5.6734,176.26,176.22,14.07624086]
[1730102908370,5.6734,176.26,176.21,14.07624086]
[1730102908572,5.6734,176.26,176.22,14.07624086]
[1730102909765,14.07624086,176.31,176.25,14.07624086]
[1730102909973,5.6721,176.3,176.26,14.07624086]
[1730102910568,5.6711,176.34,176.29,14.07624086]
[1730102910759,5.6711,176.34,176.3,14.07624086]
[1730102911474,14.07624086,176.36,176.31,14.07624086]
[1730102911475,5.6705,176.35,176.31,14.07624086]
[1730102912668,5.6705,176.35,176.3,14.07624086]
[1730102912851,19.74674086,176.35,176.29,14.07624086]
[1730102913047,19.74674086,176.35,176.3,23.776884]
[1730102914157,14.07624086,176.34,176.3,23.776884]
[1730102914361,14.07624086,176.31,176.24,14.07624086]
[1730102914553,75.6705,176.35,176.24,14.07624086]
[1730102914554,14.07624086,176.3,176.24,14.07624086]
[1730102914973,14.07624086,176.3,176.25,14.07624086]
[1730102915666,14.07624086,176.33,176.27,14.07624086]
[1730102915853,14.07624086,176.33,176.28,23.776884]
[1730102916244,14.07624086,176.33,176.28,37.85312486]
[1730102916468,5.6715,176.32,176.28,23.776884]
[1730102916955,14.07624086,176.31,176.26,14.07624086]
[1730102917162,14.07624086,176.28,176.24,23.776884]
[1730102917367,14.07624086,176.29,176.24,23.776884]
[1730102917665,14.07624086,176.3,176.25,14.07624086]
[1730102917849,14.07624086,176.3,176.24,14.07624086]
[1730102919174,14.07624086,176.3,176.25,23.776884]
[1730102919374,5.6724,176.29,176.25,23.776884]
[1730102919551,19.74864086,176.29,176.25,23.776884]
[1730102920479,14.07624086,176.28,176.25,23.776884]
[1730102920862,14.07624086,176.27,176.23,23.776884]
[1730102921573,14.07624086,176.28,176.23,23.776884]
[1730102922577,19.74934086,176.27,176.23,23.776884]
[1730102923179,14.07624086,176.24,176.2,23.776884]
[1730102923475,14.07624086,176.24,176.19,16.3846]
[1730102924057,14.07624086,176.24,176.19,30.46084086]
[1730102924858,14.07624086,176.25,176.21,23.776884]
[1730102925077,14.07624086,176.24,176.2,23.776884]
[1730102927873,5.21529618,176.39,176.25,0.1]
[1730102928069,36.20614086,176.42,176.36,37.85312486]
[1730102928263,30.18874086,176.42,176.36,37.85312486]
[1730102928975,14.07624086,176.39,176.36,23.776884]
[1730102929157,14.07624086,176.39,176.35,23.776884]
[1730102929773,19.74554086,176.39,176.35,23.776884]
[1730102929976,14.07624086,176.39,176.35,23.776884]
[1730102930172,14.07624086,176.39,176.34,23.776884]
[1730102930886,22.4869959,176.37,176.34,23.776884]
[1730102931766,22.4869959,176.36,176.31,16.6366]
[1730102931975,22.4869959,176.36,176.32,23.776884]
[1730102933072,28.1572959,176.36,176.32,23.776884]
[1730102933481,5.6703,176.36,176.32,23.776884]
[1730102933975,5.6703,176.36,176.31,22.4869959]
[1730102934186,28.1572959,176.36,176.31,23.776884]
[1730102934564,5.6703,176.36,176.31,46.2638799]
[1730102935161,28.1572959,176.36,176.31,23.776884]
[1730102936083,22.4869959,176.35,176.31,23.776884]
[1730102936665,22.4869959,176.35,176.3,23.776884]
[1730102937786,22.4869959,176.36,176.3,46.2638799]
[1730102938370,70.0,176.46,176.36,23.776884]
[1730102938568,22.4869959,176.46,176.41,23.776884]
[1730102939772,5.6673,176.45,176.41,23.776884]
[1730102940970,22.4869959,176.47,176.41,46.2638799]
[1730102941166,22.4869959,176.46,176.41,23.776884]
[1730102941366,22.4869959,176.45,176.41,23.776884]
[1730102941562,22.4869959,176.43,176.38,23.776884]
[1730102942690,22.4869959,176.42,176.38,23.776884]
[1730102943270,5.6686,176.41,176.38,23.776884]
[1730102943473,5.6679,176.43,176.39,22.4869959]
[1730102943777,5.6679,176.43,176.4,22.4869959]
[1730102944564,36.6548959,176.46,176.4,22.4869959]
[1730102944770,5.6673,176.45,176.4,22.4869959]
[1730102945374,28.1542959,176.45,176.39,22.4869959]
[1730102945778,28.1542959,176.45,176.4,23.776884]
[1730102946493,5.667,176.46,176.4,46.2638799]
[1730102946699,5.667,176.46,176.42,46.2638799]
[1730102946992,5.6667,176.47,176.44,23.776884]
[1730102947180,5.6667,176.47,176.43,23.776884]
[1730102948191,5.6667,176.47,176.42,46.2638799]
[1730102948571,28.1536959,176.47,176.42,23.776884]
[1730102950273,22.4869959,176.46,176.42,23.776884]
[1730102950584,5.6673,176.45,176.42,23.776884]
[1730102951283,5.6673,176.45,176.41,23.776884]
[1730102951284,28.1542959,176.45,176.41,23.776884]
[1730102951488,22.4869959,176.42,176.37,22.4869959]
[1730102951676,22.4869959,176.42,176.36,22.4869959]
[1730102952081,5.6673,176.45,176.35,22.3462]
[1730102952082,22.4869959,176.43,176.37,22.4869959]
[1730102952486,5.6682,176.42,176.37,22.4869959]
[1730102952690,5.6682,176.42,176.38,23.776884]
[1730102954097,5.6682,176.42,176.38,46.2638799]
[1730102954491,5.6682,176.42,176.38,23.776884]
[1730102954688,19.71667106,176.42,176.38,23.776884]
[1730102955298,5.6682,176.42,176.38,23.776884]
[1730102955794,19.8338,176.47,176.38,37.82535506]
[1730102955981,14.04847106,176.43,176.38,37.82535506]
[1730102956179,14.04847106,176.44,176.38,37.82535506]
[1730102956904,19.71667106,176.43,176.38,23.776884]
[1730102958297,5.6682,176.43,176.38,37.82535506]
[1730102958609,14.1672,176.47,176.35,22.3462]
[1730102958610,5.667,176.46,176.42,23.776884]
[1730102959393,14.04847106,176.43,176.35,22.3462]
[1730102959595,14.04847106,176.4,176.35,22.3462]
[1730102959896,14.04847106,176.4,176.35,36.39467106]
[1730102960810,19.71747106,176.4,176.36,23.776884]
[1730102961792,5.669,176.4,176.36,23.776884]
[1730102962979,14.04847106,176.4,176.36,23.776884]
[1730102963791,14.04847106,176.39,176.36,23.776884]
[1730102963984,14.04847106,176.38,176.32,14.04847106]
[1730102964187,14.04847106,176.38,176.33,14.04847106]
[1730102964394,14.04847106,176.39,176.33,14.04847106]
[1730102964610,14.04847106,176.38,176.33,14.04847106]
[1730102964801,14.04847106,176.36,176.31,36.58787106]
[1730102965000,14.04847106,176.37,176.32,14.04847106]
[1730102965305,19.71857106,176.37,176.33,23.776884]
[1730102966513,14.04847106,176.38,176.33,23.776884]
[1730102966889,19.8396,176.42,176.36,23.776884]
[1730102966890,14.04847106,176.41,176.36,23.776884]
[1730102967597,19.71667106,176.42,176.36,37.82535506]
[1730102968112,19.71667106,176.42,176.38,23.776884]
[1730102968404,5.6682,176.42,176.38,37.82535506]
[1730102969693,14.04847106,176.44,176.38,37.82535506]
[1730102970014,14.04847106,176.46,176.41,23.776884]
[1730102970610,19.71487106,176.48,176.43,23.776884]
[1730102970818,19.71487106,176.48,176.43,37.82535506]
[1730102970986,19.71487106,176.48,176.43,23.776884]
[1730102972500,5.6664,176.48,176.43,37.82535506]
[1730102972702,5.6664,176.48,176.44,14.04847106]
[1730102973203,5.6664,176.48,176.45,23.776884]
[1730102974603,19.71387106,176.51,176.45,37.82535506]
[1730102974802,19.61387106,176.51,176.46,14.04847106]
[1730102975005,5.5654,176.51,176.47,23.776884]
[1730102975711,19.61387106,176.51,176.47,23.776884]
[1730102976009,14.04847106,176.5,176.47,23.776884]
[1730102976617,14.04847106,176.49,176.47,23.776884]
[1730102978112,14.04847106,176.48,176.4,15.4911]
[1730102978418,14.04847106,176.46,176.4,15.4911]
[1730102978714,14.04847106,176.47,176.42,14.04847106]
[1730102978920,14.04847106,176.46,176.4,15.4911]
[1730102979122,14.04847106,176.5,176.4,15.4911]
[1730102979292,14.04847106,176.5,176.37,14.04847106]
[1730102979293,14.04847106,176.43,176.37,14.04847106]
[1730102980188,14.04847106,176.43,176.35,22.2076]
[1730102980388,14.04847106,176.41,176.36,14.04847106]
[1730102980814,14.04847106,176.4,176.35,22.2076]
[1730102980989,14.04847106,176.38,176.32,14.04847106]
[1730102981193,14.04847106,176.34,176.28,14.04847106]
[1730102981397,14.04847106,176.33,176.27,29.70957106]
[1730102981590,14.04847106,176.32,176.27,29.70957106]
[1730102981894,14.04847106,176.31,176.26,6.0683]
[1730102982105,14.04847106,176.31,176.26,20.11677106]
[1730102982601,14.04847106,176.31,176.26,6.0683]
[1730102983323,19.72027106,176.31,176.26,6.0683]
[1730102983625,14.1747,176.38,176.27,14.04847106]
[1730102983818,14.04847106,176.34,176.29,14.04847106]
[1730102984330,14.04847106,176.34,176.3,23.776884]
[1730102984802,19.71947106,176.34,176.29,23.776884]
[1730102985538,5.671,176.34,176.29,23.776884]
[1730102985700,14.04847106,176.33,176.29,23.776884]
[1730102986321,14.04847106,176.35,176.29,37.82535506]
[1730102987121,14.04847106,176.36,176.31,23.776884]
[1730102987302,14.04847106,176.37,176.33,23.776884]
[1730102987810,5.6702,176.36,176.32,23.776884]
[1730102989998,14.04847106,176.36,176.32,23.776884]
[1730102991330,14.04847106,176.33,176.29,23.776884]
[1730102992517,14.04847106,176.35,176.31,23.776884]
[1730102993204,14.04847106,176.36,176.31,23.776884]
[1730102993827,14.04847106,176.35,176.31,23.776884]
[1730102994924,84.04847106,176.4,176.31,23.776884]
[1730102994925,5.6673,176.45,176.36,0.25098]
[1730102995115,5.6673,176.45,176.41,23.776884]
[1730102995527,19.71577106,176.45,176.41,23.776884]
[1730102995832,14.04847106,176.44,176.4,23.776884]
[1730102996227,14.04847106,176.44,176.39,23.776884]
[1730102997826,5.6679,176.43,176.39,37.82535506]
[1730102998929,14.1651,176.49,176.41,14.04847106]
[1730102999114,14.04847106,176.48,176.43,23.776884]
[1730102999437,14.04847106,176.46,176.42,23.776884]
[1730102999910,5.6671,176.46,176.42,23.776884]
[1730103001216,5.6671,176.46,176.42,37.82535506]
[1730103001924,14.04847106,176.51,176.46,23.776884]
[1730103002228,19.71347106,176.52,176.46,37.82535506]
[1730103002734,14.04847106,176.51,176.46,23.776884]
[1730103003231,5.6657,176.5,176.46,23.776884]
[1730103004535,5.6657,176.5,176.46,37.82535506]
[1730103004829,14.04847106,176.54,176.49,37.82535506]
[1730103005037,14.04847106,176.55,176.5,14.04847106]
[1730103005340,14.04847106,176.53,176.51,23.776884]
[1730103006508,14.04847106,176.52,176.51,23.776884]
[1730103006717,14.04847106,176.52,176.47,23.776884]
[1730103007021,19.8246,176.55,176.47,23.776884]
[1730103007022,14.04847106,176.51,176.47,23.776884]
[1730103007411,5.6657,176.5,176.47,23.776884]
[1730103007607,14.04847106,176.48,176.42,14.04847106]
[1730103007916,14.04847106,176.49,176.44,14.04847106]
[1730103008114,19.71417106,176.5,176.45,14.04847106]
[1730103008735,19.71417106,176.5,176.44,14.04847106]
[1730103008736,14.04847106,176.49,176.44,14.04847106]
[1730103009031,14.04847106,176.48,176.43,23.776884]
[1730103010117,19.71497106,176.48,176.43,23.776884]
[1730103010813,14.04847106,176.5,176.45,37.82535506]
[1730103011033,14.04847106,176.49,176.45,23.776884]
[1730103011822,14.04847106,176.47,176.43,23.776884]
[1730103012233,19.71547106,176.46,176.41,14.04847106]
[1730103012537,19.71547106,176.46,176.35,0.2]
[1730103012538,14.04847106,176.44,176.39,14.04847106]
[1730103012749,14.04847106,176.45,176.4,14.04847106]
[1730103012934,14.04847106,176.45,176.39,14.04847106]
[1730103013440,19.71577106,176.45,176.39,14.04847106]
[1730103014022,14.04847106,176.43,176.38,14.04847106]
[1730103014924,14.04847106,176.44,176.39,14.04847106]
[1730103015322,19.71577106,176.45,176.4,23.776884]
[1730103015515,19.71577106,176.45,176.39,14.04847106]
[1730103015718,14.04847106,176.44,176.38,14.04847106]
[1730103016320,14.04847106,176.43,176.38,14.04847106]
[1730103016737,19.71607106,176.44,176.39,14.04847106]
[1730103017434,19.71607106,176.44,176.4,23.776884]
[1730103017742,14.04847106,176.46,176.42,23.776884]
[1730103018424,14.04847106,176.49,176.44,23.776884]
[1730103018651,19.71457106,176.49,176.44,23.776884]
[1730103023442,14.04847106,176.48,176.43,23.776884]
[1730103024544,5.6666,176.48,176.43,37.82535506]
[1730103027319,14.04847106,176.5,176.45,37.82535506]
[1730103027545,14.04847106,176.52,176.48,23.776884]
[1730103027844,14.04847106,176.51,176.46,23.776884]
[1730103028035,14.04847106,176.49,176.45,23.776884]
[1730103028627,19.71447106,176.49,176.45,23.776884]
[1730103029439,19.71447106,176.49,176.44,23.902374]
[1730103030252,19.71447106,176.49,176.44,37.95084506]
[1730103030550,14.04847106,176.47,176.41,14.04847106]
[1730103030754,14.04847106,176.46,176.4,29.48467106]
[1730103031550,14.04847106,176.46,176.41,14.04847106]
[1730103031728,14.04847106,176.46,176.42,23.776884]
[1730103033533,19.71567106,176.46,176.41,23.776884]
[1730103034263,14.04847106,176.47,176.42,14.04847106]
[1730103034463,14.04847106,176.47,176.43,23.776884]
[1730103034654,19.71517106,176.47,176.43,23.776884]
[1730103037252,19.71517106,176.47,176.42,23.776884]
[1730103037558,14.04847106,176.46,176.42,23.776884]
[1730103038057,5.6647,176.53,176.45,14.04847106]
[1730103038260,19.71317106,176.53,176.47,14.04847106]
[1730103038440,19.71317106,176.53,176.48,37.82535506]
[1730103038755,19.71297106,176.54,176.48,37.82535506]
[1730103039940,19.71297106,176.54,176.49,14.04847106]
[1730103040134,19.71297106,176.54,176.5,23.776884]
[1730103040342,0.5984079,176.57,176.51,14.04847106]
[1730103040549,0.5984079,176.57,176.54,23.776884]
[1730103041557,0.5984079,176.57,176.54,37.82535506]
[1730103044063,0.5984079,176.57,176.54,23.776884]
[1730103044760,6.2618079,176.57,176.52,14.04847106]
[1730103044954,0.5984079,176.57,176.56,14.04847106]
[1730103046042,0.5984079,176.57,176.56,38.07633506]
[1730103048256,0.5984079,176.57,176.49,22.5575]
[1730103048461,0.5984079,176.57,176.53,14.04847106]
[1730103048832,0.5984079,176.57,176.54,14.04847106]
[1730103049564,0.5984079,176.57,176.55,23.776884]
[1730103050645,0.5984079,176.57,176.54,23.776884]
[1730103050853,14.04847106,176.55,176.5,14.04847106]
[1730103051160,14.04847106,176.56,176.51,14.04847106]
[1730103052171,14.04847106,176.55,176.5,14.04847106]
[1730103052467,14.04847106,176.55,176.49,36.60597106]
[1730103053671,14.04847106,176.55,176.5,23.776884]
[1730103053858,19.71257106,176.55,176.5,23.776884]
[1730103057245,0.5984079,176.57,176.53,14.04847106]
[1730103057474,0.5984079,176.57,176.49,22.5575]
[1730103057475,0.5984079,176.57,176.54,37.82535506]
[1730103058056,0.5984079,176.57,176.56,23.776884]
[1730103058260,0.5984079,176.57,176.56,37.82535506]
[1730103058458,0.5984079,176.57,176.56,23.776884]
[1730103062755,0.5984079,176.57,176.54,37.82535506]
[1730103066083,0.5984079,176.57,176.55,14.17396106]
[1730103066293,0.5984079,176.57,176.56,38.07633506]
[1730103070269,15.1382,176.68,176.56,38.07633506]
[1730103070270,19.70957106,176.65,176.57,24.027864]
[1730103070462,5.6611,176.65,176.6,14.04847106]
[1730103071280,14.04847106,176.67,176.62,14.04847106]
[1730103071481,14.04847106,176.69,176.64,14.04847106]
[1730103071777,14.04847106,176.68,176.63,14.04847106]
[1730103072369,14.04847106,176.68,176.64,23.776884]
[1730103072576,19.70847106,176.68,176.64,23.776884]
[1730103072974,14.04847106,176.67,176.63,23.776884]
[1730103073286,19.70847106,176.68,176.63,23.776884]
[1730103074069,19.70837106,176.69,176.63,37.82535506]
[1730103074681,14.04847106,176.68,176.63,37.82535506]
[1730103074979,14.04847106,176.66,176.63,23.776884]
[1730103075286,14.04847106,176.66,176.62,23.776884]
[1730103076065,19.70927106,176.66,176.62,23.776884]
[1730103077265,19.70927106,176.66,176.61,14.04847106]
[1730103077484,14.04847106,176.65,176.6,14.04847106]
[1730103077781,19.70927106,176.66,176.6,14.04847106]
[1730103078693,19.70927106,176.66,176.61,23.776884]
[1730103079498,19.70927106,176.66,176.61,37.82535506]
[1730103080163,19.70927106,176.66,176.61,23.776884]
[1730103080682,5.6608,176.66,176.62,0.12549]
[1730103081066,19.70927106,176.66,176.61,37.82535506]
[1730103081769,19.70927106,176.66,176.61,23.776884]
[1730103082885,19.70927106,176.66,176.61,37.82535506]
[1730103083580,19.70927106,176.66,176.61,23.776884]
[1730103084283,14.04847106,176.66,176.61,37.82535506]
[1730103084586,19.70907106,176.66,176.61,37.82535506]
[1730103084965,19.70907106,176.66,176.61,23.776884]
[1730103085667,19.70907106,176.66,176.6,14.04847106]
[1730103085668,14.04847106,176.65,176.6,23.776884]
[1730103085974,14.04847106,176.63,176.6,23.776884]
[1730103086582,14.04847106,176.61,176.56,14.04847106]
[1730103087483,19.71087106,176.61,176.56,14.04847106]
[1730103087984,19.71087106,176.61,176.55,14.04847106]
[1730103088591,19.71087106,176.61,176.56,23.776884]
[1730103088789,19.71087106,176.61,176.56,37.82535506]
[1730103089087,5.6619,176.62,176.58,14.04847106]
[1730103089279,5.6619,176.62,176.59,23.776884]